fUST/lending_fUST_20241227
["ID","MTS","AMOUNT","RATE_DAILY","PERIOD"]
[346734283,1735255841705,-417.039666,0.00016438,2]
[346734285,1735255841715,-417.039666,0.00016438,2]
[346734286,1735255841724,-320.55225832,0.00016438,2]
[346734288,1735255841734,-151.0,0.00016438,2]
[346734291,1735255841743,-151.0,0.00016438,2]
[346734292,1735255841753,-151.0,0.00016438,2]
[346734295,1735255841763,-500.0,0.00016442,2]
[346734297,1735255841772,-500.0,0.00016458,2]
[346734298,1735255841781,-500.0,0.00016458,2]
[346734300,1735255841791,-500.0,0.00016476,2]
[346734302,1735255841800,-2015.95,0.00016476,2]
[346734304,1735255841809,-500.0,0.00016476,2]
[346734306,1735255841821,-693.52,0.00016476,2]
[346734309,1735255841831,-500.0,0.0001649,2]
[346734311,1735255841841,-177.227898,0.000165,2]
[346734313,1735255841850,-151.0,0.000165,2]
[346734314,1735255841860,-500.0,0.00016516,2]
[346734316,1735255841869,-558.4,0.00016517,2]
[346734319,1735255841879,-500.0,0.00016517,2]
[346734321,1735255841890,-10422.18,0.00016517,2]
[346734323,1735255841899,-500.0,0.00016518,2]
[346734325,1735255841909,-530.44,0.00016518,2]
[346734327,1735255841919,-500.0,0.00016518,2]
[346734329,1735255841928,-558.0703212,0.00016518,2]
[346734331,1735255841938,-500.0,0.00016518,2]
[346734332,1735255841947,-794.74,0.00016518,2]
[346734334,1735255841959,-500.0,0.00016518,2]
[346734337,1735255841971,-500.0,0.00016518,2]
[346734338,1735255841981,-500.0,0.00016518,2]
[346734341,1735255841991,-861.59,0.00016518,2]
[346734343,1735255842001,-550.64,0.00016518,2]
[346734345,1735255842011,-1245.51,0.00016518,2]
[346734347,1735255842020,-500.0,0.00016518,2]
[346734349,1735255842030,-151.0,0.00016518,2]
[346734351,1735255842039,-500.0,0.00016518,2]
[346734352,1735255842048,-151.0,0.00016518,2]
[346734355,1735255842059,-500.0,0.00016518,2]
[346734357,1735255842069,-1146.77,0.00016518,2]
[346734359,1735255842078,-168.0,0.00016518,2]
[346734361,1735255842088,-513.18,0.00016518,2]
[346734363,1735255842097,-621.160509,0.00016518,2]
[346734364,1735255842107,-500.0,0.00016518,2]
[346734367,1735255842116,-500.0,0.00016518,2]
[346734368,1735255842125,-500.0,0.00016518,2]
[346734377,1735255842198,-502.3,0.00016518,2]
[346734379,1735255842208,-867.9,0.00016518,2]
[346734381,1735255842218,-500.0,0.00016518,2]
[346734383,1735255842227,-1440.831388,0.00016518,2]
[346734385,1735255842237,-1067.07,0.00016518,2]
[346734387,1735255842246,-1440.831388,0.00016518,2]
[346734389,1735255842255,-500.0,0.00016518,2]
[346734391,1735255842265,-1734.008829,0.00016518,2]
[346734393,1735255842275,-540.907442,0.00016518,2]
[346734395,1735255842284,-1734.008829,0.00016518,2]
[346734397,1735255842293,-540.907442,0.00016518,2]
[346734399,1735255842303,-500.0,0.00016518,2]
[346734401,1735255842312,-632.24,0.00016518,2]
[346734403,1735255842322,-1618.58,0.00016518,2]
[346734405,1735255842331,-500.0,0.00016518,2]
[346734407,1735255842341,-500.0,0.00016518,2]
[346734409,1735255842350,-2898.9,0.00016518,2]
[346734411,1735255842360,-500.0,0.00016518,2]
[346734413,1735255842369,-500.0,0.00016518,2]
[346734415,1735255842379,-529.77,0.00016518,2]
[346734417,1735255842389,-500.0,0.00016518,2]
[346734419,1735255842398,-500.0,0.00016518,2]
[346734421,1735255842408,-151.0,0.00016518,2]
[346734423,1735255842417,-151.0,0.00016518,2]
[346734425,1735255842427,-500.0,0.00016518,2]
[346734427,1735255842436,-151.0,0.00016518,2]
[346734429,1735255842446,-151.0,0.00016518,2]
[346734431,1735255842455,-619.9,0.00016518,2]
[346734433,1735255842465,-36561.42,0.00016518,2]
[346734435,1735255842474,-1001.87,0.00016518,2]
[346734437,1735255842484,-202.80349095,0.00016518,2]
[346734439,1735255842493,-675.80595841,0.00016518,2]
[346734449,1735255842649,500.0,0.00015696,2]
[346734471,1735255842872,500.0,0.00015696,2]
[346734658,1735255844541,500.0,0.00015696,2]
[346734677,1735255844716,500.0,0.0001597,2]
[346734684,1735255844774,500.0,0.00015696,2]
[346734808,1735255846081,-498.61707561,0.00016243,2]
[346734810,1735255846092,-500.0,0.00016244,2]
[346734812,1735255846101,-1680.41,0.00016517,2]
[346734814,1735255846112,-796.63404159,0.00016518,2]
[346734816,1735255846121,-151.0,0.00016518,2]
[346734818,1735255846131,-151.0,0.00016518,2]
[346734820,1735255846141,-1041.62,0.00016518,2]
[346734822,1735255846151,-228.1783808,0.00016518,2]
[346734824,1735255846163,-620.3716192,0.00016518,2]
[346734826,1735255846172,-1532.25,0.00016518,2]
[346734828,1735255846181,-733.04,0.00016518,2]
[346734830,1735255846190,-151.0,0.00016518,2]
[346734832,1735255846200,-1485.66,0.00016518,2]
[346734834,1735255846209,-151.0,0.00016518,2]
[346734836,1735255846219,-151.0,0.00016518,2]
[346734838,1735255846228,-240.126884,0.00016518,2]
[346734840,1735255846237,-1305.92,0.00016518,2]
[346734842,1735255846247,-500.0,0.00016518,2]
[346734844,1735255846256,-500.0,0.00016518,2]
[346734846,1735255846265,-500.0,0.00016518,2]
[346734848,1735255846274,-738.47,0.00016518,2]
[346734850,1735255846284,-151.0,0.00016518,2]
[346734852,1735255846293,-151.0,0.00016518,2]
[346734854,1735255846302,-151.0,0.00016518,2]
[346734856,1735255846311,-500.0,0.00016518,2]
[346734858,1735255846326,-820.97,0.00016518,2]
[346734860,1735255846336,-500.0,0.00016518,2]
[346734862,1735255846345,-1133.41,0.00016518,2]
[346734864,1735255846355,-170.396356,0.00016518,2]
[346734866,1735255846365,-170.396356,0.00016518,2]
[346734868,1735255846374,-170.396356,0.00016518,2]
[346734870,1735255846383,-500.0,0.00016518,2]
[346734872,1735255846392,-500.0,0.00016518,2]
[346734874,1735255846401,-170.396356,0.00016518,2]
[346734876,1735255846411,-170.396356,0.00016518,2]
[346734878,1735255846421,-170.396356,0.00016518,2]
[346734880,1735255846430,-500.0,0.00016518,2]
[346734882,1735255846440,-417.039666,0.00016518,2]
[346734884,1735255846449,-417.039666,0.00016518,2]
[346734886,1735255846458,-417.039666,0.00016518,2]
[346734888,1735255846467,-417.039666,0.00016518,2]
[346734890,1735255846476,-500.0,0.00016518,2]
[346734892,1735255846486,-500.0,0.00016519,2]
[346734894,1735255846495,-744.75,0.00016519,2]
[346734896,1735255846504,-500.0,0.00016519,2]
[346734898,1735255846513,-500.0,0.00016519,2]
[346734900,1735255846523,-500.0,0.00016519,2]
[346734902,1735255846532,-500.0,0.00016519,2]
[346734904,1735255846542,-608.66,0.00016519,2]
[346734906,1735255846550,-178.813342,0.00016519,2]
[346734908,1735255846559,-500.0,0.00016519,2]
[346734910,1735255846573,-178.813342,0.00016519,2]
[346734912,1735255846582,-151.0,0.00016519,2]
[346734914,1735255846591,-1511.87,0.00016519,2]
[346734916,1735255846601,-500.0,0.00016519,2]
[346734918,1735255846610,-151.0,0.00016519,2]
[346734920,1735255846619,-1010.68,0.00016519,2]
[346734922,1735255846628,-1482.92,0.00016519,2]
[346734924,1735255846637,-869.66,0.00016519,2]
[346734926,1735255846647,-717.33,0.00016519,2]
[346734928,1735255846656,-500.0,0.00016519,2]
[346734930,1735255846665,-500.0,0.00016519,2]
[346734932,1735255846674,-500.0,0.00016519,2]
[346734934,1735255846684,-500.0,0.00016519,2]
[346734936,1735255846693,-500.0,0.00016519,2]
[346734938,1735255846702,-660.02,0.00016519,2]
[346734940,1735255846711,-540.907442,0.00016519,2]
[346734942,1735255846720,-540.907442,0.00016519,2]
[346734944,1735255846729,-500.0,0.00016519,2]
[346734946,1735255846738,-1843.31,0.00016519,2]
[346734948,1735255846747,-500.0,0.00016519,2]
[346734950,1735255846756,-947.55,0.00016519,2]
[346734952,1735255846765,-500.0,0.00016519,2]
[346734954,1735255846775,-500.0,0.00016519,2]
[346734956,1735255846784,-1528.39,0.00016519,2]
[346734958,1735255846793,-500.0,0.00016573,2]
[346734966,1735255846803,-1356.42614929,0.00016594,2]
[346734969,1735255846876,-500.0,0.00016595,2]
[346734970,1735255846890,-178.813342,0.00016596,2]
[346734973,1735255846901,-178.813342,0.00016596,2]
[346734975,1735255846910,-621.160509,0.00016596,2]
[346734977,1735255846920,-1440.831388,0.00016596,2]
[346734979,1735255846931,-1440.831388,0.00016596,2]
[346734981,1735255846940,-1734.008829,0.00016596,2]
[346734983,1735255846949,-1734.008829,0.00016596,2]
[346734985,1735255846959,-540.907442,0.00016596,2]
[346734987,1735255846970,-540.907442,0.00016596,2]
[346734989,1735255846979,-433.60613764,0.00016596,2]
[346734991,1735255846988,-151.0,0.00016596,2]
[346734993,1735255846997,-151.0,0.00016596,2]
[346734995,1735255847007,-151.0,0.00016596,2]
[346734997,1735255847016,-500.0,0.00016596,2]
[346734999,1735255847025,-151.0,0.00016596,2]
[346735001,1735255847034,-500.0,0.00016596,2]
[346735003,1735255847044,-500.0,0.00016596,2]
[346735005,1735255847053,-500.0,0.00016596,2]
[346735007,1735255847063,-500.0,0.00016596,2]
[346735009,1735255847075,-417.039666,0.00016596,2]
[346735011,1735255847084,-417.039666,0.00016596,2]
[346735013,1735255847093,-370.069354,0.00016597,2]
[346735015,1735255847103,-277.716842,0.00016597,2]
[346735017,1735255847112,-370.069354,0.00016597,2]
[346735019,1735255847122,-277.716842,0.00016597,2]
[346735021,1735255847131,-151.0,0.00016597,2]
[346735023,1735255847140,-151.0,0.00016597,2]
[346735025,1735255847149,-151.0,0.00016597,2]
[346735027,1735255847159,-170.396356,0.00016597,2]
[346735029,1735255847168,-500.0,0.00016597,2]
[346735031,1735255847177,-500.0,0.00016597,2]
[346735033,1735255847186,-500.0,0.00016597,2]
[346735035,1735255847196,-170.396356,0.00016597,2]
[346735036,1735255847206,-525.96335905,0.00016598,2]
[346735037,1735255847215,-152.69044545,0.00016598,2]
[346735038,1735255847224,-500.0,0.00016598,2]
[346735039,1735255847234,-500.0,0.00016598,2]
[346735040,1735255847243,-500.0,0.00016598,2]
[346735041,1735255847252,-500.0,0.00016598,2]
[346735042,1735255847261,-500.0,0.00016598,2]
[346735043,1735255847270,-500.0,0.00016598,2]
[346735044,1735255847279,-151.0,0.00016598,2]
[346735045,1735255847289,-500.0,0.00016598,2]
[346735046,1735255847298,-151.0,0.00016598,2]
[346735047,1735255847307,-500.0,0.00016598,2]
[346735048,1735255847319,-500.0,0.00016598,2]
[346735049,1735255847328,-500.0,0.00016598,2]
[346735051,1735255847337,-151.0,0.00016598,2]
[346735053,1735255847347,-208.056078,0.00016598,2]
[346735055,1735255847356,-500.0,0.00016598,2]
[346735057,1735255847365,-500.0,0.00016598,2]
[346735059,1735255847375,-500.0,0.00016598,2]
[346735061,1735255847384,-712.86,0.00016598,2]
[346735063,1735255847394,-500.0,0.00016598,2]
[346735065,1735255847403,-500.0,0.00016598,2]
[346735067,1735255847412,-500.0,0.00016598,2]
[346735069,1735255847422,-151.0,0.00016598,2]
[346735071,1735255847432,-500.0,0.00016598,2]
[346735073,1735255847443,-500.0,0.00016598,2]
[346735075,1735255847452,-151.0,0.00016598,2]
[346735077,1735255847461,-151.0,0.00016598,2]
[346735079,1735255847470,-500.0,0.00016598,2]
[346735081,1735255847479,-500.0,0.00016598,2]
[346735083,1735255847488,-502.87951586,0.00016598,2]
[346735085,1735255847498,-500.0,0.00016598,2]
[346735087,1735255847507,-500.0,0.00016598,2]
[346735089,1735255847516,-500.0,0.00016598,2]
[346735091,1735255847525,-508.77,0.00016598,2]
[346735093,1735255847534,-500.0,0.00016598,2]
[346735095,1735255847544,-503.10281426,0.00016598,2]
[346735097,1735255847553,-500.0,0.00016598,2]
[346735099,1735255847563,-500.0,0.00016598,2]
[346735101,1735255847576,-370.069354,0.00016598,2]
[346735103,1735255847585,-277.716842,0.00016598,2]
[346735105,1735255847594,-500.0,0.00016598,2]
[346735107,1735255847604,-370.069354,0.00016598,2]
[346735109,1735255847613,-277.716842,0.00016598,2]
[346735111,1735255847622,-500.0,0.00016598,2]
[346735113,1735255847632,-1329.46,0.00016598,2]
[346735115,1735255847641,-500.0,0.00016598,2]
[346735117,1735255847650,-500.0,0.00016598,2]
[346735119,1735255847659,-500.0,0.00016598,2]
[346735121,1735255847669,-151.0,0.00016598,2]
[346735123,1735255847678,-151.0,0.00016598,2]
[346735125,1735255847687,-178.813342,0.00016598,2]
[346735127,1735255847697,-178.813342,0.00016598,2]
[346735129,1735255847706,-500.0,0.00016598,2]
[346735131,1735255847716,-500.0,0.00016598,2]
[346735133,1735255847725,-383.99564397,0.00016598,2]
[346735135,1735255847735,-151.0,0.00016598,2]
[346735137,1735255847745,-151.0,0.00016598,2]
[346735139,1735255847754,-500.0,0.00016598,2]
[346735141,1735255847763,-500.0,0.00016598,2]
[346735143,1735255847772,-500.0,0.00016598,2]
[346735145,1735255847781,-500.0,0.00016598,2]
[346735147,1735255847790,-500.0,0.00016598,2]
[346735149,1735255847800,-380.58966107,0.00016598,2]
[346735151,1735255847809,-500.0,0.00016598,2]
[346735153,1735255847821,-500.0,0.00016598,2]
[346735161,1735255847889,-211.64130333,0.00016598,2]
[346735163,1735255847900,-500.0,0.00016598,2]
[346735165,1735255847910,-500.0,0.00016598,2]
[346735167,1735255847919,-621.160509,0.00016598,2]
[346735169,1735255847928,-500.0,0.00016598,2]
[346735171,1735255847939,-1440.831388,0.00016598,2]
[346735173,1735255847949,-1440.831388,0.00016598,2]
[346735175,1735255847959,-1734.008829,0.00016598,2]
[346735177,1735255847969,-1734.008829,0.00016598,2]
[346735179,1735255847979,-500.0,0.00016598,2]
[346735181,1735255847988,-540.907442,0.00016598,2]
[346735183,1735255847998,-540.907442,0.00016598,2]
[346735185,1735255848007,-500.0,0.00016598,2]
[346735187,1735255848017,-500.0,0.00016598,2]
[346735189,1735255848026,-151.0,0.00016598,2]
[346735191,1735255848036,-285.374228,0.00016598,2]
[346735193,1735255848045,-151.0,0.00016598,2]
[346735195,1735255848055,-500.0,0.00016598,2]
[346735197,1735255848065,-500.0,0.00016598,2]
[346735199,1735255848075,-151.0,0.00016598,2]
[346735201,1735255848084,-500.0,0.00016598,2]
[346735203,1735255848094,-500.0,0.00016598,2]
[346735205,1735255848103,-500.0,0.00016598,2]
[346735207,1735255848112,-500.0,0.00016598,2]
[346735209,1735255848122,-500.0,0.00016598,2]
[346735211,1735255848131,-500.0,0.00016598,2]
[346735213,1735255848142,-500.0,0.00016598,2]
[346735215,1735255848151,-417.039666,0.00016598,2]
[346735217,1735255848161,-417.039668,0.00016598,2]
[346735219,1735255848170,-500.0,0.00016598,2]
[346735221,1735255848179,-351.8225599,0.000166,2]
[346735223,1735255848189,-500.0,0.000166,2]
[346735225,1735255848198,-166.94727028,0.00016617,2]
[346735227,1735255848208,-500.0,0.00016644,2]
[346735229,1735255848218,-500.0,0.00016644,2]
[346735231,1735255848227,-500.0,0.00016644,2]
[346735233,1735255848238,-500.0,0.00016646,2]
[346735235,1735255848247,-500.0,0.00016646,2]
[346735237,1735255848257,-178.813342,0.00016646,2]
[346735239,1735255848266,-178.813342,0.00016646,2]
[346735241,1735255848276,-10816.77,0.00016646,2]
[346735243,1735255848286,-1536.27,0.00016646,2]
[346735245,1735255848295,-500.0,0.00016646,2]
[346735247,1735255848305,-500.0,0.00016648,2]
[346735249,1735255848314,-500.0,0.0001665,2]
[346735251,1735255848326,-503.7810491,0.0001665,2]
[346735253,1735255848335,-621.160509,0.0001665,2]
[346735256,1735255848350,-1440.831388,0.0001665,2]
[346735259,1735255848373,-1440.831388,0.0001665,2]
[346735262,1735255848389,-1734.008829,0.0001665,2]
[346735265,1735255848409,-1734.008829,0.0001665,2]
[346735268,1735255848430,-540.907442,0.0001665,2]
[346735271,1735255848447,-540.907442,0.0001665,2]
[346735274,1735255848466,-151.0,0.0001665,2]
[346735277,1735255848483,-151.0,0.0001665,2]
[346735280,1735255848499,-151.0,0.0001665,2]
[346735283,1735255848517,-8644.56,0.0001665,2]
[346735286,1735255848537,-151.0,0.00016651,2]
[346735289,1735255848554,-151.0,0.00016651,2]
[346735291,1735255848569,-151.0,0.00016651,2]
[346735294,1735255848588,-151.0,0.00016652,2]
[346735297,1735255848602,-275.3999,0.00016652,2]
[346735299,1735255848618,-151.0,0.00016652,2]
[346735302,1735255848631,-370.069354,0.00016653,2]
[346735304,1735255848646,-277.716842,0.00016653,2]
[346735307,1735255848659,-370.069354,0.00016653,2]
[346735309,1735255848674,-277.716842,0.00016653,2]
[346735312,1735255848688,-151.0,0.00016653,2]
[346735314,1735255848702,-151.0,0.00016653,2]
[346735317,1735255848716,-151.0,0.00016653,2]
[346735319,1735255848731,-500.0,0.00016653,2]
[346735322,1735255848746,-151.0,0.00016654,2]
[346735325,1735255848761,-151.0,0.00016654,2]
[346735327,1735255848776,-151.0,0.000167,2]
[346735330,1735255848790,-500.0,0.0001675,2]
[346735332,1735255848804,-2015.95,0.0001675,2]
[346735333,1735255848819,-500.0,0.0001675,2]
[346735334,1735255848833,-693.52,0.0001675,2]
[346735335,1735255848848,-235.3780168,0.00016754,2]
[346735336,1735255848863,-500.0,0.0001679,2]
[346735337,1735255848878,-558.4,0.00016791,2]
[346735338,1735255848891,-500.0,0.00016791,2]
[346735339,1735255848902,-10422.18,0.00016791,2]
[346735340,1735255848911,-1680.41,0.00016791,2]
[346735341,1735255848921,-500.0,0.00016792,2]
[346735342,1735255848932,-500.0,0.00016792,2]
[346735343,1735255848942,-500.0,0.00016792,2]
[346735344,1735255848952,-794.74,0.00016792,2]
[346735345,1735255848962,-500.0,0.00016792,2]
[346735346,1735255848972,-500.0,0.00016792,2]
[346735347,1735255848983,-533.85,0.00016792,2]
[346735348,1735255848993,-861.59,0.00016792,2]
[346735349,1735255849002,-550.64,0.00016792,2]
[346735350,1735255849167,-178.813342,0.00016792,2]
[346735351,1735255849177,-178.813342,0.00016792,2]
[346735352,1735255849187,-1245.51,0.00016792,2]
[346735353,1735255849197,-500.0,0.00016792,2]
[346735354,1735255849206,-500.0,0.00016792,2]
[346735355,1735255849215,-500.0,0.00016792,2]
[346735356,1735255849224,-1146.77,0.00016792,2]
[346735357,1735255849233,-168.0,0.00016792,2]
[346735358,1735255849243,-513.18,0.00016792,2]
[346735359,1735255849252,-621.160509,0.00016792,2]
[346735360,1735255849262,-500.0,0.00016792,2]
[346735361,1735255849271,-500.0,0.00016792,2]
[346735362,1735255849281,-500.0,0.00016792,2]
[346735363,1735255849291,-867.9,0.00016792,2]
[346735364,1735255849301,-500.0,0.00016792,2]
[346735365,1735255849311,-1440.831388,0.00016792,2]
[346735366,1735255849324,-1067.07,0.00016792,2]
[346735367,1735255849334,-1440.831388,0.00016792,2]
[346735368,1735255849344,-500.0,0.00016792,2]
[346735369,1735255849354,-1734.008829,0.00016792,2]
[346735370,1735255849364,-1734.008829,0.00016792,2]
[346735371,1735255849374,-540.907442,0.00016792,2]
[346735372,1735255849384,-540.907443,0.00016792,2]
[346735373,1735255849394,-632.24,0.00016792,2]
[346735374,1735255849404,-1618.58,0.00016792,2]
[346735375,1735255849414,-500.0,0.00016792,2]
[346735376,1735255849423,-500.0,0.00016792,2]
[346735377,1735255849432,-2898.9,0.00016792,2]
[346735378,1735255849442,-500.0,0.00016792,2]
[346735379,1735255849452,-500.0,0.00016792,2]
[346735380,1735255849461,-529.77,0.00016792,2]
[346735381,1735255849470,-500.0,0.00016792,2]
[346735382,1735255849480,-500.0,0.00016792,2]
[346735384,1735255849489,-500.0,0.00016792,2]
[346735386,1735255849499,-36561.42,0.00016792,2]
[346735388,1735255849509,-1001.87,0.00016792,2]
[346735390,1735255849518,-1472.44,0.00016792,2]
[346735392,1735255849527,-1041.62,0.00016792,2]
[346735393,1735255849536,-848.55,0.00016792,2]
[346735395,1735255849545,-1532.25,0.00016792,2]
[346735397,1735255849555,-733.04,0.00016792,2]
[346735399,1735255849564,-1485.66,0.00016792,2]
[346735401,1735255849577,-1305.92,0.00016792,2]
[346735402,1735255849587,-500.0,0.00016792,2]
[346735404,1735255849596,-500.0,0.00016792,2]
[346735406,1735255849605,-500.0,0.00016792,2]
[346735408,1735255849614,-738.47,0.00016792,2]
[346735410,1735255849624,-500.0,0.00016792,2]
[346735411,1735255849633,-820.97,0.00016792,2]
[346735413,1735255849642,-500.0,0.00016792,2]
[346735414,1735255849652,-1133.41,0.00016792,2]
[346735416,1735255849661,-249.54557432,0.00016792,2]
[346735418,1735255849685,-250.45442568,0.00016792,2]
[346735419,1735255849695,-500.0,0.00016792,2]
[346735421,1735255849704,-500.0,0.00016792,2]
[346735423,1735255849713,-500.0,0.00016792,2]
[346735424,1735255849722,-151.0,0.00016793,2]
[346735426,1735255849732,-151.0,0.00016793,2]
[346735427,1735255849741,-625.7,0.00016793,2]
[346735429,1735255849750,-220.11861371,0.00016793,2]
[346735430,1735255849764,-524.63138629,0.00016793,2]
[346735432,1735255849776,-411.66870371,0.00016793,2]
[346735434,1735255849789,-88.33129629,0.00016793,2]
[346735435,1735255849799,-500.0,0.00016793,2]
[346735437,1735255849808,-500.0,0.00016793,2]
[346735438,1735255849819,-370.069354,0.00016793,2]
[346735440,1735255849828,-277.716842,0.00016793,2]
[346735442,1735255849837,-370.069354,0.00016793,2]
[346735443,1735255849847,-277.716842,0.00016793,2]
[346735445,1735255849856,-500.0,0.00016793,2]
[346735446,1735255849866,-151.0,0.00016793,2]
[346735448,1735255849875,-608.66,0.00016793,2]
[346735450,1735255849884,-151.0,0.00016793,2]
[346735451,1735255849897,-178.813342,0.00016793,2]
[346735453,1735255849906,-500.0,0.00016793,2]
[346735454,1735255849915,-178.813342,0.00016793,2]
[346735456,1735255849925,-1511.87,0.00016793,2]
[346735458,1735255849935,-500.0,0.00016793,2]
[346735459,1735255849944,-151.0,0.00016793,2]
[346735461,1735255849954,-1010.68,0.00016793,2]
[346735463,1735255849963,-1482.92,0.00016793,2]
[346735464,1735255849973,-869.66,0.00016793,2]
[346735466,1735255849982,-717.33,0.00016793,2]
[346735467,1735255849991,-521.64,0.00016793,2]
[346735468,1735255850001,-500.0,0.00016793,2]
[346735469,1735255850010,-500.0,0.00016793,2]
[346735470,1735255850020,-500.0,0.00016793,2]
[346735471,1735255850029,-500.0,0.00016793,2]
[346735472,1735255850039,-660.02,0.00016793,2]
[346735473,1735255850048,-79.90040571,0.00016793,2]
[346735474,1735255850216,500.0,0.00015696,2]
[346735475,1735255850250,500.0,0.0001597,2]
[346735476,1735255850376,228.23623091,0.00015696,2]
[346735477,1735255850444,151.0,0.0001597,2]
[346735478,1735255850490,151.0,0.0001597,2]
[346735479,1735255850529,151.0,0.00016179,2]
[346735480,1735255850681,500.0,0.00015696,2]
[346735582,1735255853997,844.76,0.00015695,2]
[346735598,1735255854359,844.76,0.00015969,2]
[346735606,1735255854818,500.0,0.00014833,2]
[346735615,1735255855175,500.0,0.00015107,2]
[346735616,1735255855260,395.07148706,0.00016081,2]
[346735617,1735255855454,500.0,0.00015381,2]
[346735626,1735255855716,500.0,0.00015655,2]
[346735638,1735255855997,500.0,0.00015929,2]
[346735639,1735255856691,279.522229,0.0001597,2]
[346735640,1735255856939,629.17,0.00015694,2]
[346735641,1735255856979,279.522229,0.0001597,2]
[346735642,1735255857274,629.17,0.00015968,2]
[346735643,1735255857399,279.522229,0.00016179,2]
[346735644,1735255858638,221.100447,0.00015969,2]
[346735645,1735255858920,221.100447,0.0001597,2]
[346735646,1735255859209,221.100447,0.0001597,2]
[346735647,1735255859486,221.100447,0.00016179,2]
[346735648,1735255859514,500.0,0.00015696,2]
[346735649,1735255859757,500.0,0.0001597,2]
[346735650,1735255859826,279.522229,0.0001597,2]
[346735651,1735255860119,279.522229,0.0001597,2]
[346735652,1735255860465,279.522229,0.00016179,2]
[346735653,1735255860596,500.0,0.00015696,2]
[346735654,1735255862054,221.100447,0.00015969,2]
[346735655,1735255862229,500.0,0.00014833,2]
[346735656,1735255862258,221.100447,0.0001597,2]
[346735657,1735255862491,500.0,0.00015107,2]
[346735658,1735255862771,221.100447,0.0001597,2]
[346735659,1735255862799,500.0,0.00015381,2]
[346735660,1735255863056,500.0,0.00015655,2]
[346735661,1735255863087,221.100447,0.00016179,2]
[346735662,1735255863320,500.0,0.00015929,2]
[346735663,1735255865207,500.0,0.00015695,2]
[346735664,1735255865451,500.0,0.00015969,2]
[346735665,1735255868214,500.0,0.00015696,2]
[346735666,1735255873800,348.36,0.00015694,2]
[346735667,1735255876545,151.0,0.0001597,2]
[346735668,1735255876946,151.0,0.0001597,2]
[346735669,1735255877303,151.0,0.00016179,2]
[346735670,1735255878777,151.0,0.00015969,2]
[346735671,1735255879079,151.0,0.0001597,2]
[346735672,1735255879389,151.0,0.0001597,2]
[346735673,1735255879776,233.956838,0.00016179,2]
[346735674,1735255882294,1281.38,0.00015695,2]
[346735675,1735255882543,1281.38,0.00015969,2]
[346735676,1735255890833,2294.96,0.00015695,2]
[346735677,1735255891102,2294.96,0.00015969,2]
[346735678,1735255893812,500.0,0.00015694,2]
[346735679,1735255893940,500.0,0.00015968,2]
[346735680,1735255894764,595.08,0.00015697,2]
[346735681,1735255895599,595.08,0.00015971,2]
[346735682,1735255899143,500.0,0.00015696,2]